bitfinex-derivatives/quotes_SOLF0:USTF0_20250325
["timestamp","ask_amount","ask_price","bid_price","bid_amount"]
[1742863283970,7.08532594,142.02,141.99,0.04908605]
[1742863284267,0.04482594,142.02,141.99,0.04908605]
[1742863284468,7.08542594,142.02,141.99,0.04908605]
[1742863284973,0.04482594,142.02,141.99,0.04908605]
[1742863285476,7.0409,142.01,141.99,0.04908605]
[1742863286275,7.08542594,142.02,141.99,0.04908605]
[1742863286679,0.04482594,142.02,141.99,0.04908605]
[1742863286972,7.0411,142.01,141.99,0.04908605]
[1742863288479,0.04482594,142.02,141.99,0.04908605]
[1742863289182,7.0414,142.0,141.99,0.04908605]
[1742863291480,7.0432,141.97,141.94,25.64]
[1742863291873,7.0416,142.0,141.94,25.64]
[1742863292580,0.05057771,141.98,141.97,7.0428]
[1742863310488,0.00040559,141.98,141.97,7.0428]
[1742863311895,5.74138632,142.07,141.97,7.04]
[1742863312096,12.77948632,142.07,141.97,13.9314618]
[1742863312291,5.74138632,142.07,142.03,7.0396]
[1742863312795,0.05074162,142.06,142.04,0.04845811]
[1742863312992,0.05074162,142.06,142.04,7.08775811]
[1742863313189,0.05074162,142.06,142.04,0.04845811]
[1742863314796,0.05074162,142.06,142.05,7.0389]
[1742863317397,0.05074162,142.06,142.04,0.04845811]
[1742863318197,0.05074162,142.06,142.05,7.0389]
[1742863320003,5.74138632,142.07,142.06,7.0384]
[1742863320202,5.74138632,142.07,142.06,32.6584]
[1742863322508,0.05022052,142.08,142.07,7.0379]
[1742863323905,0.05022052,142.08,142.06,32.6582]
[1742863324107,0.05022052,142.08,142.04,0.04845811]
[1742863324302,0.05022052,142.08,142.07,25.62]
[1742863324507,0.05022052,142.08,142.04,0.04845811]
[1742863324705,0.05022052,142.08,142.05,25.62]
[1742863324905,0.05022052,142.08,142.04,0.04845811]
[1742863325208,7.0389,142.05,142.04,0.04845811]
[1742863325410,1.8868,142.07,142.01,77.41755693]
[1742863325604,7.0399,142.03,142.01,77.41755693]
[1742863326100,7.0399,142.03,142.02,35.62527845]
[1742863326302,7.0399,142.03,142.02,17.12477845]
[1742863326503,7.0404,142.02,142.01,77.46844733]
[1742863326711,7.0404,142.02,142.01,0.0508904]
[1742863327008,7.0419,141.99,141.98,28.66131448]
[1742863327412,25.62,142.02,141.98,28.66131448]
[1742863327815,7.0414,142.0,141.98,28.66131448]
[1742863328014,7.09295112,142.0,141.98,28.72613223]
[1742863328313,0.05155112,142.0,141.98,28.72613223]
[1742863328713,0.05155112,142.0,141.99,25.62]
[1742863331517,1.9773,142.11,141.99,32.66]
[1742863331817,1.9773,142.11,142.02,7.0401]
[1742863332014,7.0377,142.08,142.03,25.62]
[1742863332415,1.9773,142.11,142.03,25.62]
[1742863332616,0.04523289,142.07,142.04,0.04600129]
[1742863333517,7.0384,142.06,142.04,0.04600129]
[1742863334311,7.0389,142.05,142.04,0.04600129]
[1742863338322,7.041,142.01,141.98,0.02002208]
[1742863338815,0.98,142.07,141.98,0.02002208]
[1742863339020,7.0408,142.02,141.98,0.02002208]
[1742863339425,0.04705062,142.01,141.99,0.04995536]
[1742863340822,0.04705062,142.01,141.99,7.09165536]
[1742863341022,0.04705062,142.01,141.99,0.04995536]
[1742863341522,0.04705062,142.01,141.99,7.09155536]
[1742863341919,0.04705062,142.01,141.99,0.04995536]
[1742863342724,0.04705062,142.01,141.99,7.09155536]
[1742863343022,0.04705062,142.01,141.99,0.04995536]
[1742863343228,0.04705062,142.01,141.99,7.09175536]
[1742863343624,0.04705062,142.01,141.99,0.04995536]
[1742863343927,7.08805062,142.01,141.99,0.04995536]
[1742863344230,0.04705062,142.01,141.99,0.04995536]
[1742863344621,0.04705062,142.01,141.99,7.09175536]
[1742863344823,0.04705062,142.01,141.99,0.04995536]
[1742863346126,7.08815062,142.01,141.99,0.04995536]
[1742863346331,0.04705062,142.01,141.99,0.04995536]
[1742863347218,0.04705062,142.01,141.99,7.09165536]
[1742863348730,0.04705062,142.01,141.99,0.04995536]
[1742863349727,7.0414,142.0,141.99,0.04995536]
[1742863351123,7.08815062,142.01,141.99,0.04995536]
[1742863352026,7.0414,142.0,141.99,0.04995536]
[1742863357029,7.0414,142.0,141.99,5.536e-05]
[1742863357227,32.6614,142.0,141.99,5.536e-05]
[1742863358131,32.6614,142.0,141.98,7.744e-05]
[1742863358336,24.00178006,141.99,141.87,138.13894391]
[1742863358528,12.00178006,141.96,141.87,138.13894391]
[1742863358727,7.0462,141.91,141.87,138.13894391]
[1742863359129,25.62,141.95,141.87,138.13894391]
[1742863359435,0.04583523,141.9,141.88,28.91461634]
[1742863359635,25.62,141.95,141.88,28.91461634]
[1742863359836,0.05335726,141.9,141.88,28.91461634]
[1742863360132,0.04537453,141.9,141.88,28.91461634]
[1742863361733,7.0468,141.89,141.88,0.05275321]
[1742863362238,7.09197453,141.9,141.88,0.05275321]
[1742863362938,0.04537453,141.9,141.88,0.05275321]
[1742863363438,7.09197453,141.9,141.88,0.05275321]
[1742863363637,0.04537453,141.9,141.88,0.05275321]
[1742863364839,7.09167453,141.9,141.88,0.05275321]
[1742863365039,0.04537453,141.9,141.88,0.05275321]
[1742863365844,7.09197453,141.9,141.88,0.05275321]
[1742863368748,7.0468,141.89,141.88,0.05275321]
[1742863371851,0.04537453,141.9,141.88,0.05275321]
[1742863372847,7.09207453,141.9,141.88,0.05275321]
[1742863373144,0.04537453,141.9,141.88,0.05275321]
[1742863374451,7.09197453,141.9,141.88,0.05275321]
[1742863374650,0.04537453,141.9,141.88,0.05275321]
[1742863374951,7.0468,141.89,141.88,0.05275321]
[1742863376754,7.09197453,141.9,141.88,0.05275321]
[1742863376951,0.04537453,141.9,141.88,0.05275321]
[1742863378443,7.0468,141.89,141.88,0.05275321]
[1742863379255,7.09187453,141.9,141.88,0.05275321]
[1742863380557,7.0468,141.89,141.88,0.05275321]
[1742863381458,7.09197453,141.9,141.88,0.05275321]
[1742863381758,0.04537453,141.9,141.88,0.05275321]
[1742863382459,7.0468,141.89,141.88,0.05275321]
[1742863390462,7.09197453,141.9,141.88,0.05275321]
[1742863391263,7.0468,141.89,141.88,0.05275321]
[1742863394373,0.04537453,141.9,141.88,0.05275321]
[1742863394772,7.0468,141.89,141.88,0.05275321]
[1742863398669,7.0488,141.85,141.84,38.48550666]
[1742863400075,7.09593424,141.86,141.84,38.48550666]
[1742863401376,7.09593424,141.86,141.83,0.05414244]
[1742863401673,7.0488,141.85,141.83,0.05414244]
[1742863401885,10.90573555,141.99,141.84,244.5966608]
[1742863402173,116.79453198,142.02,141.92,12.0166608]
[1742863402473,116.79453198,142.02,141.94,12.0166608]
[1742863402674,116.79453198,142.02,141.95,26.44]
[1742863403070,0.04813958,142.0,141.97,0.04929575]
[1742863403673,0.04813958,142.0,141.99,7.0419]
[1742863403873,0.04813958,142.0,141.99,33.4619]
[1742863408082,0.04813958,142.0,141.99,26.42]
[1742863408282,0.04813958,142.0,141.99,26.3]
[1742863410789,0.04813958,142.0,141.99,33.3419]
[1742863411089,0.04813958,142.0,141.99,26.3]
[1742863415577,0.04813958,142.0,141.97,0.04929575]
[1742863416091,7.0424,141.98,141.97,0.04929575]
[1742863418295,7.0449,141.93,141.88,26.2]
[1742863418784,28.0723,141.99,141.88,26.2]
[1742863419380,0.05290605,141.95,141.92,0.04640572]
[1742863419987,7.0445,141.94,141.92,0.04640572]
[1742863420389,0.05290605,141.95,141.92,0.04640572]
[1742863420589,7.0446,141.94,141.92,0.04640572]
[1742863420789,0.05290605,141.95,141.92,0.04640572]
[1742863421387,7.0448,141.93,141.92,0.04640572]
[1742863423190,7.0448,141.93,141.92,5.72e-06]
[1742863428796,0.05290605,141.95,141.92,5.72e-06]
[1742863429495,0.05290605,141.95,141.94,7.0443]
[1742863434087,0.05290605,141.95,141.93,7.0446]
[1742863434898,0.05290605,141.95,141.92,3.72990572]
[1742863434899,0.05290605,141.95,141.94,7.0443]
[1742863436594,0.05290605,141.95,141.93,7.0446]
[1742863438895,0.05290605,141.95,141.94,7.0443]
[1742863440092,1.8572,142.02,141.97,7.0427]
[1742863440488,7.0414,142.0,141.92,26.14]
[1742863441202,0.0543423,141.97,141.95,0.04520371]
[1742863441691,0.0543423,141.97,141.95,7.08870371]
[1742863442698,0.0543423,141.97,141.95,0.04520371]
[1742863444400,7.0433,141.96,141.95,0.04520371]
[1742863451402,0.0543423,141.97,141.88,3.815]
[1742863451605,18.73551761,141.95,141.87,38.32725526]
[1742863451807,27.9222,141.94,141.87,38.32725526]
[1742863452102,7.0473,141.88,141.87,38.32725526]
[1742863452301,7.0473,141.88,141.87,76.65451055]
[1742863453111,7.09510894,141.89,141.87,76.65451055]
[1742863454307,0.04800894,141.89,141.87,76.65451055]
[1742863454706,7.09510894,141.89,141.87,76.65451055]
[1742863454912,0.04800894,141.89,141.87,76.65451055]
[1742863455113,0.04800894,141.89,141.86,0.04589432]
[1742863457604,7.09480894,141.89,141.86,0.04589432]
[1742863457810,0.04800894,141.89,141.86,0.04589432]
[1742863458314,7.09510894,141.89,141.86,0.04589432]
[1742863458918,7.09510894,141.89,141.86,7.09399432]
[1742863459216,0.04800894,141.89,141.86,0.04589432]
[1742863459516,0.04800894,141.89,141.87,7.0477]
[1742863462017,0.04800894,141.89,141.86,7.09389432]
[1742863463020,7.09490894,141.89,141.86,7.09389432]
[1742863463420,0.04800894,141.89,141.87,7.0477]
[1742863464119,0.04800894,141.89,141.86,7.09399432]
[1742863464315,7.09480894,141.89,141.86,7.09399432]
[1742863465420,7.0474,141.88,141.86,7.09399432]
[1742863465624,0.04800894,141.89,141.86,0.04589432]
[1742863465918,7.0478,141.87,141.86,0.04589432]
[1742863467617,0.04800894,141.89,141.86,0.04589432]
[1742863467822,29.923,141.99,141.86,0.04589432]
[1742863468016,41.94230784,141.99,141.84,37.93930784]
[1742863468215,25.98,141.98,141.9,7.0459]
[1742863468412,7.0455,141.92,141.9,25.98]
[1742863468919,7.09738796,141.92,141.9,26.02524967]
[1742863471219,0.05188796,141.92,141.9,33.07144967]
[1742863471422,0.05188796,141.92,141.9,26.02524967]
[1742863471619,0.05188796,141.92,141.91,7.0458]
[1742863471821,0.05188796,141.92,141.9,26.02524967]
[1742863472223,0.05188796,141.92,141.9,33.07124967]
[1742863472522,0.05188796,141.92,141.9,26.02524967]
[1742863472722,0.05188796,141.92,141.91,7.0458]
[1742863473313,29.963,141.99,141.94,7.0441]
[1742863473518,27.9923,141.99,141.94,7.0441]
[1742863473713,7.0434,141.96,141.94,7.0441]
[1742863473914,27.9923,141.99,141.94,25.96]
[1742863473915,2.0523,141.99,141.94,25.96]
[1742863474221,7.0427,141.98,141.94,25.96]
[1742863474524,260.4346,142.03,141.97,7.0424]
[1742863474919,7.0418,142.0,141.99,0.04672629]
[1742863475319,7.08777345,142.01,141.99,0.04672629]
[1742863475520,0.04667345,142.01,141.99,0.04672629]
[1742863476320,7.0414,142.0,141.99,0.04672629]
[1742863483226,7.08787345,142.01,141.99,0.04672629]
[1742863483531,0.04667345,142.01,141.99,0.04672629]
[1742863483728,7.0414,142.0,141.99,0.04672629]
[1742863487932,0.04667345,142.01,141.94,7.044]
[1742863487933,7.0432,141.97,141.94,7.044]
[1742863488431,7.0434,141.96,141.93,32.8446]
[1742863489029,7.0434,141.96,141.93,32.89774669]
[1742863489030,7.0885012,141.96,141.93,32.89774669]
[1742863490131,7.0885012,141.96,141.93,25.85314669]
[1742863490731,7.0438,141.95,141.93,25.85314669]
[1742863492235,0.0451012,141.96,141.93,25.85314669]
[1742863492236,7.0443,141.94,141.93,25.85314669]
[1742863492437,7.0443,141.94,141.93,0.05314669]
[1742863506850,12.0073016,141.95,141.87,3.9164]
[1742863507050,12.0073016,141.94,141.87,25.64]
[1742863507348,12.0073016,141.94,141.87,7.0476]
[1742863507548,7.0465,141.9,141.87,7.0476]
[1742863507944,7.09804694,141.9,141.87,7.09955137]
[1742863508251,0.05154694,141.9,141.89,7.0468]
[1742863508644,0.05154694,141.9,141.89,32.6868]
[1742863515353,0.05154694,141.9,141.89,25.64]
[1742863516955,0.05154694,141.9,141.89,32.6868]
[1742863517954,0.05154694,141.9,141.87,25.69195137]
[1742863518259,7.0468,141.89,141.87,25.69195137]
[1742863519150,7.0468,141.89,141.87,0.05195137]
[1742863519346,7.0473,141.88,141.87,0.05195137]
[1742863533561,25.66,141.88,141.82,32.74683998]
[1742863534061,7.0487,141.86,141.82,32.74683998]
[1742863534267,25.66,141.88,141.82,32.74683998]
[1742863534567,0.0485932,141.86,141.84,0.04696888]
[1742863535267,7.0488,141.85,141.84,0.04696888]
[1742863535968,7.0498,141.83,141.82,0.03683998]
[1742863536564,37.6673016,141.84,141.77,38.65021666]
[1742863537066,0.05168012,141.82,141.77,38.65021666]
[1742863537565,7.0523,141.78,141.77,38.65021666]
[1742863539669,7.0523,141.78,141.75,25.72774583]
[1742863540169,7.053,141.77,141.75,25.72774583]
[1742863540568,0.05291579,141.79,141.75,0.06774583]
[1742863541571,7.0533,141.76,141.75,0.06774583]
[1742863546674,12.0073016,141.78,141.7,3.8578]
[1742863546874,12.0073016,141.78,141.69,7.0567]
[1742863547077,7.0555,141.72,141.69,32.7167]
[1742863547372,12.0073016,141.78,141.67,1.9301]
[1742863547577,7.10482487,141.72,141.68,25.66]
[1742863547768,0.04912487,141.72,141.68,25.66]
[1742863548174,0.04912487,141.72,141.69,7.0565]
[1742863548366,0.04912487,141.72,141.68,25.66]
[1742863548877,0.04912487,141.72,141.7,7.056]
[1742863549176,1.9186,141.79,141.68,25.66]
[1742863549565,7.0533,141.76,141.68,25.66]
[1742863550371,0.04668349,141.73,141.71,0.05254444]
[1742863550577,0.04668349,141.73,141.72,25.66]
[1742863550770,0.04668349,141.73,141.72,32.7148]
[1742863553877,0.04668349,141.73,141.72,25.66]
[1742863554579,0.04668349,141.73,141.71,7.10794444]
[1742863554780,0.04668349,141.73,141.71,0.05254444]
[1742863555469,0.04668349,141.73,141.71,7.10804444]
[1742863557982,7.10148349,141.73,141.71,0.05254444]
[1742863558475,7.0553,141.72,141.71,0.05254444]
[1742863559282,7.10168349,141.73,141.71,0.05254444]
[1742863560482,7.0553,141.72,141.71,0.05254444]
[1742863562375,7.10158349,141.73,141.71,0.05254444]
[1742863562575,0.04668349,141.73,141.71,0.05254444]
[1742863562780,7.0531,141.77,141.74,7.0539]
[1742863562979,39.6102016,141.82,141.74,32.7339]
[1742863563386,7.053,141.77,141.74,32.7339]
[1742863563877,7.10051116,141.77,141.75,7.0538]
[1742863564090,0.04751116,141.77,141.75,7.0538]
[1742863565787,7.10031116,141.77,141.75,7.0538]
[1742863565987,0.04751116,141.77,141.74,32.78076978]
[1742863566589,0.04751116,141.77,141.74,25.72646978]
[1742863566985,7.0538,141.75,141.74,25.72646978]
[1742863567287,0.04751116,141.77,141.74,25.72646978]
[1742863567782,7.0535,141.76,141.74,25.72646978]
[1742863568791,7.10051116,141.77,141.74,32.78076978]
[1742863570691,7.0538,141.75,141.74,25.72646978]
[1742863571190,7.0538,141.75,141.74,0.04646978]
[1742863576886,7.0534,141.76,141.74,0.04646978]
[1742863578694,7.10031116,141.77,141.74,0.04646978]
[1742863579086,7.10051116,141.77,141.74,7.10046978]
[1742863579291,0.04751116,141.77,141.74,7.10046978]
[1742863579494,0.04751116,141.77,141.75,25.66]
[1742863579689,0.04751116,141.77,141.75,32.7135]
[1742863580395,7.10041116,141.77,141.75,25.66]
[1742863580796,0.04751116,141.77,141.75,25.66]
[1742863580985,0.04751116,141.77,141.74,0.04646978]
[1742863582095,7.0538,141.75,141.74,0.04646978]
[1742863582891,0.04751116,141.77,141.74,0.04646978]
[1742863583499,7.0538,141.75,141.74,0.04646978]
[1742863583692,0.04751116,141.77,141.74,0.04646978]
[1742863585198,0.04751116,141.77,141.76,7.0533]
[1742863585405,263.72947278,141.89,141.76,25.66]
[1742863585606,282.98204822,141.89,141.76,25.66]
[1742863585902,282.98204822,141.89,141.82,7.0502]
[1742863586302,7.0491,141.85,141.82,7.0502]
[1742863586499,7.0491,141.85,141.84,0.0515583]
[1742863589505,12.05566203,141.87,141.81,25.66]
[1742863589506,7.0503,141.82,141.81,25.66]
[1742863590104,7.0509,141.81,141.78,7.0521]
[1742863590308,7.0509,141.81,141.79,25.66]
[1742863590809,7.09728662,141.81,141.79,25.70705752]
[1742863591006,7.0513,141.8,141.79,25.70705752]
[1742863591606,0.04638662,141.81,141.79,25.70705752]
[1742863592110,0.04638662,141.81,141.79,32.75845752]
[1742863592505,0.04638662,141.81,141.79,25.70705752]
[1742863593113,0.04638662,141.81,141.8,7.0513]
[1742863596613,0.04638662,141.81,141.79,32.75855752]
[1742863596808,0.04638662,141.81,141.79,25.70705752]
[1742863597010,7.0513,141.8,141.79,25.70705752]
[1742863600320,7.0513,141.8,141.79,0.04705752]
[1742863600926,7.09748662,141.81,141.79,0.04705752]
[1742863601426,0.04638662,141.81,141.8,7.0513]
[1742863602522,7.05,141.83,141.81,7.0505]
[1742863602821,7.05,141.83,141.81,32.7105]
[1742863603622,7.10174635,141.83,141.81,32.76217344]
[1742863604617,1.9998,141.89,141.81,25.71167344]
[1742863605222,7.048,141.87,141.81,25.71167344]
[1742863605412,7.048,141.87,141.82,1.9692]
[1742863605615,7.0476,141.88,141.85,7.0485]
[1742863606016,7.09978286,141.88,141.85,7.10233171]
[1742863606216,7.0479,141.87,141.85,7.10233171]
[1742863606718,0.05218286,141.88,141.85,0.05383171]
[1742863606923,0.05218286,141.88,141.85,25.69383171]
[1742863607820,7.09958286,141.88,141.86,7.0481]
[1742863609629,0.05218286,141.88,141.87,7.0478]
[1742863611225,232.68,141.95,141.85,25.69383171]
[1742863611426,232.68,141.95,141.85,25.64]
[1742863612132,244.6873016,141.95,141.85,25.64]
[1742863612326,0.05342133,141.91,141.89,0.05358562]
[1742863612829,7.0463,141.9,141.89,0.05358562]
[1742863619722,7.09932133,141.91,141.89,0.05358562]
[1742863619927,0.05342133,141.91,141.89,0.05358562]
[1742863620122,0.05342133,141.91,141.9,7.0463]
[1742863620629,0.05342133,141.91,141.89,25.69358562]
[1742863620826,0.05342133,141.91,141.9,7.0463]
[1742863621030,0.05342133,141.91,141.89,25.69358562]
[1742863621932,0.05342133,141.91,141.89,32.74018562]
[1742863622334,0.05342133,141.91,141.89,25.69358562]
[1742863622531,0.05342133,141.91,141.9,7.0463]
[1742863622933,0.05342133,141.91,141.89,25.69358562]
[1742863623632,0.05342133,141.91,141.89,32.74018562]
[1742863624031,0.05342133,141.91,141.9,7.0463]
[1742863627634,12.0073016,141.98,141.89,25.69358562]
[1742863627936,7.0442,141.95,141.89,25.64]
[1742863628435,1.9592,141.99,141.9,3.9891]
[1742863628636,7.09103085,141.96,141.94,7.0441]
[1742863629038,7.09103085,141.96,141.93,25.6708745]
[1742863629639,7.0439,141.95,141.93,32.7154745]
[1742863629836,0.04743085,141.96,141.93,25.6708745]
[1742863630235,7.0443,141.94,141.93,0.0508745]
[1742863632831,7.0441,141.95,141.93,0.0508745]
[1742863633141,7.0441,141.95,141.93,7.0954745]
[1742863634641,7.09103085,141.96,141.94,7.0443]
[1742863634841,7.09103085,141.96,141.94,32.6643]
[1742863636244,7.0438,141.95,141.94,25.62]
[1742863641150,7.0443,141.94,141.93,0.0508745]
[1742863641541,7.0441,141.95,141.93,0.0508745]
[1742863641946,0.04743085,141.96,141.93,0.0508745]
[1742863642848,0.04743085,141.96,141.93,1.9247745]
[1742863643040,14.0808,142.03,141.93,1.9247745]
[1742863643237,7.0422,141.99,141.93,1.8739]
[1742863643447,7.0422,141.99,141.96,7.043]
[1742863643746,14.0808,142.03,141.96,7.043]
[1742863643747,14.0808,142.03,141.97,25.62]
[1742863643949,7.0419,141.99,141.97,25.62]
[1742863644245,7.0419,141.99,141.97,32.6627]
[1742863644445,7.0419,141.99,141.97,32.71526705]
[1742863645751,0.05418682,142.01,141.97,25.67256705]
[1742863646353,7.0417,142.0,141.97,32.71506705]
[1742863646849,0.05418682,142.01,141.97,32.71506705]
[1742863647049,7.0418,142.0,141.98,7.0423]
[1742863647654,0.05418682,142.01,141.97,25.67256705]
[1742863648248,7.0424,141.98,141.97,25.67256705]
[1742863649456,7.0415,142.0,141.98,7.0423]
[1742863649645,0.05418682,142.01,141.97,25.67256705]
[1742863650053,7.0415,142.0,141.97,32.71496705]
[1742863650250,7.0415,142.0,141.97,25.67256705]
[1742863650950,0.05418682,142.01,141.97,0.05256705]
[1742863651360,7.0442,141.95,141.93,25.6]
[1742863651854,3.8673,142.0,141.93,25.6]
[1742863651855,7.0443,141.94,141.93,25.6]
[1742863661771,7.0448,141.93,141.92,0.05275055]
[1742863663161,0.04586853,141.95,141.93,7.0448]
[1742863663864,0.04586853,141.95,141.94,7.0443]
[1742863664774,261.72746962,142.04,141.96,7.0431]
[1742863664970,14.03434461,142.03,141.96,25.6]
[1742863665274,7.0421,141.99,141.96,25.6]
[1742863665771,7.0421,141.99,141.96,32.643]
[1742863665964,0.05389306,141.99,141.96,25.6521228]
[1742863666772,0.05389306,141.99,141.98,7.0424]
[1742863667967,7.09579306,141.99,141.97,7.0426]
[1742863668667,0.05389306,141.99,141.97,7.0426]
[1742863669269,7.0428,141.97,141.96,25.6521228]
[1742863670176,0.05389306,141.99,141.96,25.6521228]
[1742863670570,0.05389306,141.99,141.97,7.0426]
[1742863671470,7.09579306,141.99,141.97,7.0426]
[1742863671778,0.05389306,141.99,141.97,7.0426]
[1742863673075,0.05389306,141.99,141.98,7.0424]
[1742863673270,0.05389306,141.99,141.96,25.6521228]
[1742863673469,7.09579306,141.99,141.96,25.6521228]
[1742863673668,0.05389306,141.99,141.96,25.6521228]
[1742863674674,0.05389306,141.99,141.97,7.0425]
[1742863675573,0.05389306,141.99,141.98,7.0424]
[1742863677076,0.05389306,141.99,141.97,7.0426]
[1742863679480,7.09589306,141.99,141.97,7.0426]
[1742863679882,0.05389306,141.99,141.97,7.0426]
[1742863680981,7.09599306,141.99,141.97,7.0426]
[1742863681379,0.05389306,141.99,141.96,32.6953228]
[1742863681579,7.0424,141.98,141.96,25.6521228]
[1742863681780,7.0424,141.98,141.96,7.0954228]
[1742863681979,7.0424,141.98,141.96,32.6954228]
[1742863682984,7.0424,141.98,141.96,25.6521228]
[1742863683187,7.0428,141.97,141.96,25.6521228]
[1742863686487,0.05389306,141.99,141.96,25.6521228]
[1742863686488,7.0426,141.98,141.96,25.6521228]
[1742863687784,7.0426,141.98,141.96,32.6954228]
[1742863690388,7.0428,141.97,141.96,0.0521228]
[1742863695686,7.0428,141.97,141.96,25.6521228]
[1742863696385,7.0426,141.98,141.96,25.6521228]
[1742863696794,0.05389306,141.99,141.96,25.6521228]
[1742863696996,7.0428,141.97,141.96,25.6521228]
[1742863698694,0.05389306,141.99,141.97,7.0425]
[1742863698993,242.98,142.1,141.96,25.6521228]
[1742863699201,7.0392,142.05,142.02,7.0403]
[1742863699496,7.0392,142.05,142.02,32.6403]
[1742863699695,254.98044461,142.1,142.02,25.6]
[1742863699898,7.0397,142.04,142.02,25.6]
[1742863700394,7.0397,142.04,142.02,25.65262071]
[1742863700896,7.0399,142.03,142.02,25.65262071]
[1742863703401,7.08481983,142.04,142.02,25.65262071]
[1742863703594,0.04531983,142.04,142.02,25.65262071]
[1742863703793,0.04531983,142.04,142.02,32.69272071]
[1742863705595,0.04531983,142.04,142.03,7.0399]
[1742863706901,0.04531983,142.04,142.02,25.65262071]
[1742863707403,7.0399,142.03,142.02,0.05262071]
[1742863709706,7.08481983,142.04,142.02,0.05262071]
[1742863710214,0.04531983,142.04,142.02,0.05262071]
[1742863710611,0.04531983,142.04,142.03,25.58]
[1742863710807,7.08471983,142.04,142.03,25.58]
[1742863711913,0.04531983,142.04,142.03,25.58]
[1742863712213,242.98,142.1,142.03,25.58]
[1742863712414,29.3765,142.11,142.03,25.58]
[1742863712610,29.3765,142.11,142.04,7.0391]
[1742863713012,29.3765,142.11,142.03,25.58]
[1742863713513,0.04663934,142.08,142.06,0.05034615]
[1742863713716,7.0379,142.07,142.06,0.05034615]
[1742863715055,0.04663934,142.08,142.06,0.05034615]
[1742863715372,0.04663934,142.08,142.07,25.58]
[1742863716149,7.08403934,142.08,142.07,25.58]
[1742863718458,7.0379,142.07,142.06,0.05034615]
[1742863726352,7.0379,142.07,142.06,4.615e-05]
[1742863730642,7.08433934,142.08,142.06,4.615e-05]
[1742863731041,0.04663934,142.08,142.06,4.615e-05]
[1742863731431,7.0379,142.07,142.06,4.615e-05]
[1742863742539,0.04663934,142.08,142.06,4.615e-05]
[1742863743541,0.04663934,142.08,142.07,7.0379]
[1742863744743,0.04663934,142.08,142.06,7.03814615]
[1742863746446,0.04663934,142.08,142.07,7.0379]
[1742863746951,7.08403934,142.08,142.06,4.615e-05]
[1742863747544,0.04663934,142.08,142.06,4.615e-05]
[1742863748537,0.04663934,142.08,142.07,7.0379]
[1742863748847,0.04663934,142.08,142.06,4.615e-05]
[1742863749049,0.04663934,142.08,142.06,7.03794615]
[1742863749548,7.08403934,142.08,142.06,7.03794615]
[1742863749750,0.04663934,142.08,142.06,4.615e-05]
[1742863749951,7.0379,142.07,142.06,4.615e-05]
[1742863752457,7.08423934,142.08,142.06,4.615e-05]
[1742863752751,0.04663934,142.08,142.06,4.615e-05]
[1742863752956,0.04663934,142.08,142.07,7.0379]
[1742863753450,0.04663934,142.08,142.06,4.615e-05]
[1742863753451,7.0359,142.12,142.09,7.0368]
[1742863753650,7.0359,142.12,142.09,25.56]
[1742863753852,254.88604868,142.16,142.09,25.56]
[1742863754052,7.0348,142.14,142.09,25.56]
[1742863754254,256.8616,142.22,142.09,25.56]
[1742863754255,11.98604868,142.2,142.09,25.56]
[1742863754654,0.04868991,142.16,142.13,0.05145105]
[1742863754846,0.04868991,142.16,142.14,25.56]
[1742863755046,0.04868991,142.16,142.15,7.0339]
[1742863755749,0.04868991,142.16,142.14,25.56]
[1742863756156,0.1247325,142.24,142.14,25.56]
[1742863756363,0.1247325,142.24,142.17,11.98604868]
[1742863756656,134.29859876,142.27,142.22,7.0304]
[1742863756954,123.82283198,142.27,142.23,25.56]
[1742863757158,7.029,142.25,142.24,0.05021111]
[1742863760159,7.0305,142.22,142.21,25.56]
[1742863760361,25.54,142.26,142.18,25.54]
[1742863760758,7.0318,142.2,142.18,25.54]
[1742863761367,7.08006525,142.2,142.18,25.59100411]
[1742863762367,7.0319,142.19,142.18,25.59100411]
[1742863762554,7.0319,142.19,142.18,0.05100411]
[1742863762760,0.04826525,142.2,142.13,25.54]
[1742863762956,7.0348,142.14,142.13,25.54]
[1742863764057,0.04972827,142.15,142.13,25.54]
[1742863764058,7.08392827,142.15,142.13,25.54]
[1742863764260,7.08392827,142.15,142.13,25.56000145]
[1742863764461,0.04972827,142.15,142.13,25.56000145]
[1742863764661,25.54,142.22,142.13,32.59490145]
[1742863764662,7.033,142.17,142.13,32.59490145]
[1742863764868,25.54,142.22,142.13,32.59490145]